fUSD/lending_fUSD_20260624
["ID","MTS","AMOUNT","RATE_DAILY","PERIOD"]
[426284327,1782244242000,-250.0,0.00014,2]
[426284330,1782244242000,-1500.0,0.00014231,2]
[426284284,1782244242000,-151.0,0.00013699,2]
[426284334,1782244242000,-173.9717767,0.000144,2]
[426284304,1782244242000,-1787.4503283,0.0001371,2]
[426284333,1782244242000,-326186.76886603,0.0001425,2]
[426284299,1782244242000,-500.0,0.00013699,2]
[426284308,1782244242000,-1787.4503283,0.00013766,2]
[426284274,1782244242000,-500.0,0.00013698,2]
[426284283,1782244242000,-151.0,0.00013699,2]
[426284282,1782244242000,-200.0,0.00013699,2]
[426284280,1782244242000,-500.0,0.00013698,2]
[426284285,1782244242000,-151.0,0.00013699,2]
[426284336,1782244242000,-200.0,0.000146,5]
[426284287,1782244242000,-151.0,0.00013699,2]
[426284297,1782244242000,-500.0,0.00013699,2]
[426284298,1782244242000,-500.0,0.00013699,2]
[426284294,1782244242000,-500.0,0.00013699,2]
[426284295,1782244242000,-500.0,0.00013699,2]
[426284276,1782244242000,-500.0,0.00013698,2]
[426284286,1782244242000,-151.0,0.00013699,2]
[426284292,1782244242000,-500.0,0.00013699,2]
[426284307,1782244242000,-1787.4503283,0.00013765,2]
[426284305,1782244242000,-396.0,0.00013749,2]
[426284302,1782244242000,-1787.4503283,0.00013702,2]
[426284306,1782244242000,-304.0,0.00013756,2]
[426284309,1782244242000,-260.01828572,0.00013769,2]
[426284303,1782244242000,-1787.4503283,0.00013707,2]
[426284289,1782244242000,-497.59977551,0.00013699,2]
[426284293,1782244242000,-500.0,0.00013699,2]
[426284290,1782244242000,-500.0,0.00013699,2]
[426284288,1782244242000,-151.0,0.00013699,2]
[426284300,1782244242000,-512.89447558,0.00013699,2]
[426284378,1782244243000,-9000.0,0.00015,2]
[426284359,1782244243000,-20920.45860655,0.000149,3]
[426284358,1782244243000,-25000.0,0.000149,3]
[426284360,1782244243000,-5800.0,0.000149,2]
[426284379,1782244243000,-160.93470755,0.00015,14]
[426284371,1782244243000,-442.6122114,0.0001499,2]
[426284376,1782244243000,-8929490.08489552,0.00015,2]
[426284368,1782244243000,-220782.5,0.0001499,2]
[426284377,1782244243000,-8836169.34912305,0.00015,2]
[426284361,1782244243000,-11866.3658858,0.000149,3]
[426284382,1782244243000,-200.0,0.00015,2]
[426284374,1782244243000,-1000.0,0.00014999,2]
[426284381,1782244243000,-151.0,0.00015,2]
[426284380,1782244243000,-571997.66874574,0.00015,2]
[426284369,1782244243000,-97562.2988349,0.0001499,2]
[426284387,1782244243000,-150.0,0.00015068,2]
[426284385,1782244243000,-1964.00388579,0.00015,2]
[426284383,1782244243000,-15000.0,0.00015,2]
[426284391,1782244243000,-589.258295,0.00015068,2]
[426284384,1782244243000,-5111.0,0.00015,2]
[426284386,1782244243000,-10195.57933536,0.00015,2]
[426284357,1782244243000,-25000.0,0.000149,3]
[426284375,1782244243000,-250.0,0.00014999,2]
[426284366,1782244243000,-208699.4080185,0.0001499,2]
[426284354,1782244243000,-1153.5969942,0.0001489,2]
[426284367,1782244243000,-248882.5,0.0001499,2]
[426284393,1782244243000,-589.258295,0.00015068,2]
[426284340,1782244243000,-1282.64528638,0.00014775,5]
[426284338,1782244243000,-200.0,0.000147,5]
[426284339,1782244243000,-1282.64528638,0.00014775,5]
[426284343,1782244243000,-500.0,0.00014775,2]
[426284337,1782244243000,-13379.64521044,0.000147,2]
[426284342,1782244243000,-500.0,0.00014775,2]
[426284345,1782244243000,-857.0,0.00014776,5]
[426284341,1782244243000,-1282.64528639,0.00014775,5]
[426284344,1782244243000,-500.0,0.00014775,2]
[426284349,1782244243000,-595.04906239,0.00014847,2]
[426284346,1782244243000,-1555.5,0.00014779,2]
[426284350,1782244243000,-57474.14208638,0.0001485,2]
[426284347,1782244243000,-200.0,0.000148,5]
[426284356,1782244243000,-25000.0,0.00014891,3]
[426284348,1782244243000,-500.0,0.00014847,2]
[426284352,1782244243000,-184.77099342,0.00014856,2]
[426284351,1782244243000,-341.26433074,0.00014856,2]
[426284355,1782244243000,-25000.0,0.00014891,3]
[426284353,1782244243000,-200.0,0.00014879,2]
[426284365,1782244243000,-487.04722214,0.0001498,2]
[426284364,1782244243000,-3672.52361523,0.000149,2]
[426284362,1782244243000,-1709.75,0.000149,2]
[426284363,1782244243000,-200.0,0.000149,5]
[426284389,1782244243000,-589.258295,0.00015068,2]
[426284399,1782244243000,-589.258295,0.00015068,2]
[426284388,1782244243000,-589.258295,0.00015068,2]
[426284433,1782244243000,-10195.57933536,0.000155,2]
[426284425,1782244243000,-403.22,0.000153,14]
[426284429,1782244243000,-1613.0535,0.00015327,2]
[426284428,1782244243000,-200.0,0.00015301,2]
[426284431,1782244243000,-200.0,0.00015494,2]
[426284427,1782244243000,-1964.00388579,0.000153,2]
[426284430,1782244243000,-200.0,0.00015455,2]
[426284426,1782244243000,-10195.57933536,0.000153,2]
[426284440,1782244243000,-10195.57933536,0.000158,2]
[426284441,1782244243000,-1964.00388579,0.000158,2]
[426284435,1782244243000,-188.93716951,0.000156,2]
[426284437,1782244243000,-1964.00388579,0.000156,2]
[426284438,1782244243000,-200.0,0.00015609,2]
[426284436,1782244243000,-10195.57933536,0.000156,2]
[426284444,1782244243000,-2000.0,0.00015806,2]
[426284439,1782244243000,-188.93716951,0.000158,2]
[426284443,1782244243000,-500.0,0.00015806,2]
[426284445,1782244243000,-2000.0,0.00015814,2]
[426284442,1782244243000,-2000.0,0.00015806,2]
[426284449,1782244243000,-1964.00388579,0.000159,2]
[426284448,1782244243000,-10195.57933536,0.000159,2]
[426284447,1782244243000,-1672.7364795,0.00015874,2]
[426284390,1782244243000,-589.258295,0.00015068,2]
[426284432,1782244243000,-191.03546668,0.00015494,2]
[426284434,1782244243000,-1964.00388579,0.000155,2]
[426284446,1782244243000,-2000.0,0.00015852,7]
[426284423,1782244243000,-10195.57933536,0.000152,2]
[426284424,1782244243000,-609.88,0.000152,2]
[426284397,1782244243000,-589.258295,0.00015068,2]
[426284394,1782244243000,-589.258295,0.00015068,2]
[426284404,1782244243000,-589.258295,0.00015068,2]
[426284402,1782244243000,-589.258295,0.00015068,2]
[426284395,1782244243000,-589.258295,0.00015068,2]
[426284403,1782244243000,-589.258295,0.00015068,2]
[426284405,1782244243000,-589.258295,0.00015068,2]
[426284398,1782244243000,-589.258295,0.00015068,2]
[426284400,1782244243000,-589.258295,0.00015068,2]
[426284396,1782244243000,-589.258295,0.00015068,2]
[426284392,1782244243000,-589.258295,0.00015068,2]
[426284412,1782244243000,-250.0,0.00015068,2]
[426284414,1782244243000,-2500.0,0.00015108,2]
[426284419,1782244243000,-835.99,0.00015147,2]
[426284417,1782244243000,-1350.0,0.00015108,7]
[426284421,1782244243000,-209.98865178,0.0001519,2]
[426284406,1782244243000,-589.258295,0.00015068,2]
[426284408,1782244243000,-589.258301,0.00015068,2]
[426284410,1782244243000,-900.0,0.00015068,2]
[426284420,1782244243000,-200.0,0.0001515,2]
[426284422,1782244243000,-1964.00388579,0.000152,2]
[426284416,1782244243000,-1100.0,0.00015108,2]
[426284401,1782244243000,-589.258295,0.00015068,2]
[426284480,1782244244000,-1248.35,0.00016438,2]
[426284479,1782244244000,-749.1,0.00016438,2]
[426284478,1782244244000,-366.0,0.00016438,2]
[426284472,1782244244000,-10195.57933536,0.000164,2]
[426284482,1782244244000,-943.6,0.00016438,2]
[426284484,1782244244000,-151.0,0.00016438,2]
[426284487,1782244244000,-205.447498,0.00016438,2]
[426284476,1782244244000,-554.0,0.00016438,2]
[426284481,1782244244000,-178.27,0.00016438,2]
[426284483,1782244244000,-151.983336,0.00016438,2]
[426284491,1782244244000,-205.447498,0.00016438,2]
[426284485,1782244244000,-151.0,0.00016438,2]
[426284486,1782244244000,-205.447498,0.00016438,2]
[426284494,1782244244000,-205.447498,0.00016438,2]
[426284495,1782244244000,-205.447498,0.00016438,2]
[426284497,1782244244000,-205.447498,0.00016438,2]
[426284499,1782244244000,-205.447498,0.00016438,2]
[426284493,1782244244000,-205.447498,0.00016438,2]
[426284492,1782244244000,-205.447498,0.00016438,2]
[426284496,1782244244000,-205.447498,0.00016438,2]
[426284477,1782244244000,-767.0,0.00016438,2]
[426284488,1782244244000,-205.447498,0.00016438,2]
[426284470,1782244244000,-200.0,0.0001634,2]
[426284466,1782244244000,-1361.0,0.00016271,2]
[426284468,1782244244000,-6083.0,0.00016271,2]
[426284489,1782244244000,-205.447498,0.00016438,2]
[426284451,1782244244000,-9000.0,0.00016,2]
[426284450,1782244244000,-323.28457604,0.00015934,2]
[426284453,1782244244000,-192.0,0.00016,2]
[426284455,1782244244000,-216.39158367,0.00016,3]
[426284454,1782244244000,-300.0,0.00016,2]
[426284452,1782244244000,-161.80998669,0.00016,2]
[426284457,1782244244000,-10195.57933536,0.000161,2]
[426284456,1782244244000,-414.13558744,0.00016,2]
[426284463,1782244244000,-1964.00388579,0.000162,2]
[426284473,1782244244000,-1734.62772924,0.00016423,2]
[426284465,1782244244000,-1277.0,0.00016271,2]
[426284458,1782244244000,-1964.00388579,0.000161,2]
[426284464,1782244244000,-3562.0,0.00016271,2]
[426284459,1782244244000,-414.13558744,0.000161,2]
[426284461,1782244244000,-1709.75,0.000162,2]
[426284462,1782244244000,-10195.57933536,0.000162,2]
[426284475,1782244244000,-340.0,0.00016438,2]
[426284467,1782244244000,-216.0,0.00016271,2]
[426284471,1782244244000,-1964.00388579,0.000164,2]
[426284474,1782244244000,-183.451621,0.00016438,2]
[426284469,1782244244000,-182.0,0.0001629,2]
[426284460,1782244244000,-9999.99,0.00016116,2]
[426284490,1782244244000,-205.447498,0.00016438,2]
[426284498,1782244244000,-205.447498,0.00016438,2]
[426284543,1782244244000,-307.16,0.0001672,2]
[426284529,1782244244000,-157.301191,0.00016438,2]
[426284527,1782244244000,-151.0,0.00016438,2]
[426284531,1782244244000,-177.97943159,0.00016448,2]
[426284530,1782244244000,-250.0,0.00016438,4]
[426284537,1782244244000,-500.0,0.00016692,2]
[426284533,1782244244000,-1829.65,0.000165,7]
[426284534,1782244244000,-1961.82,0.00016575,2]
[426284535,1782244244000,-10195.57933536,0.000166,2]
[426284538,1782244244000,-500.0,0.00016692,2]
[426284532,1782244244000,-835.99,0.00016473,2]
[426284525,1782244244000,-1993.101868,0.00016438,2]
[426284540,1782244244000,-172.08,0.00016712,2]
[426284542,1782244244000,-307.16,0.0001672,2]
[426284541,1782244244000,-307.16,0.0001672,2]
[426284544,1782244244000,-307.16,0.0001672,2]
[426284545,1782244244000,-307.16,0.0001672,2]
[426284546,1782244244000,-307.16,0.0001672,2]
[426284547,1782244244000,-307.16,0.0001672,2]
[426284548,1782244244000,-307.16,0.0001672,2]
[426284550,1782244244000,-307.16,0.0001672,2]
[426284549,1782244244000,-307.16,0.0001672,2]
[426284501,1782244244000,-205.447498,0.00016438,2]
[426284536,1782244244000,-500.0,0.00016692,2]
[426284528,1782244244000,-151.0,0.00016438,2]
[426284539,1782244244000,-10195.57933536,0.000167,2]
[426284522,1782244244000,-1993.101868,0.00016438,2]
[426284509,1782244244000,-1993.101868,0.00016438,2]
[426284510,1782244244000,-1993.101868,0.00016438,2]
[426284502,1782244244000,-205.447498,0.00016438,2]
[426284500,1782244244000,-205.447498,0.00016438,2]
[426284526,1782244244000,-1993.101878,0.00016438,2]
[426284505,1782244244000,-205.447497,0.00016438,2]
[426284504,1782244244000,-205.447498,0.00016438,2]
[426284507,1782244244000,-1993.101868,0.00016438,2]
[426284506,1782244244000,-900.0,0.00016438,2]
[426284508,1782244244000,-1993.101868,0.00016438,2]
[426284511,1782244244000,-1993.101868,0.00016438,2]
[426284512,1782244244000,-1993.101868,0.00016438,2]
[426284503,1782244244000,-205.447498,0.00016438,2]
[426284514,1782244244000,-1993.101868,0.00016438,2]
[426284519,1782244244000,-1993.101868,0.00016438,2]
[426284523,1782244244000,-1993.101868,0.00016438,2]
[426284520,1782244244000,-1993.101868,0.00016438,2]
[426284524,1782244244000,-1993.101868,0.00016438,2]
[426284516,1782244244000,-1993.101868,0.00016438,2]
[426284521,1782244244000,-1993.101868,0.00016438,2]
[426284513,1782244244000,-1993.101868,0.00016438,2]
[426284517,1782244244000,-1993.101868,0.00016438,2]
[426284515,1782244244000,-1993.101868,0.00016438,2]
[426284518,1782244244000,-1993.101868,0.00016438,2]
[426284573,1782244245000,-307.16,0.0001672,2]
[426284579,1782244245000,-201.0,0.000168,3]
[426284575,1782244245000,-307.16,0.0001672,2]
[426284577,1782244245000,-307.16,0.0001672,2]
[426284578,1782244245000,-236.8,0.00016767,2]
[426284574,1782244245000,-307.16,0.0001672,2]
[426284576,1782244245000,-307.16,0.0001672,2]
[426284583,1782244245000,-1210.9,0.00016931,2]
[426284588,1782244245000,-153.0,0.00017148,2]
[426284580,1782244245000,-10195.57933536,0.000169,2]
[426284582,1782244245000,-726.63,0.00016931,2]
[426284584,1782244245000,-1798.80895522,0.00016971,2]
[426284585,1782244245000,-9000.0,0.00017,2]
[426284587,1782244245000,-151.0,0.00017148,2]
[426284586,1782244245000,-10195.57933536,0.000171,2]
[426284592,1782244245000,-927.0,0.00017148,2]
[426284571,1782244245000,-307.16,0.0001672,2]
[426284581,1782244245000,-1127.0,0.00016922,2]
[426284572,1782244245000,-307.16,0.0001672,2]
[426284553,1782244245000,-307.16,0.0001672,2]
[426284570,1782244245000,-307.16,0.0001672,2]
[426284591,1782244245000,-268.0,0.00017148,2]
[426284551,1782244245000,-307.16,0.0001672,2]
[426284561,1782244245000,-307.16,0.0001672,2]
[426284552,1782244245000,-307.16,0.0001672,2]
[426284554,1782244245000,-307.16,0.0001672,2]
[426284555,1782244245000,-307.16,0.0001672,2]
[426284559,1782244245000,-307.16,0.0001672,2]
[426284558,1782244245000,-307.16,0.0001672,2]
[426284569,1782244245000,-307.16,0.0001672,2]
[426284560,1782244245000,-307.16,0.0001672,2]
[426284557,1782244245000,-307.16,0.0001672,2]
[426284563,1782244245000,-307.16,0.0001672,2]
[426284562,1782244245000,-307.16,0.0001672,2]
[426284564,1782244245000,-307.16,0.0001672,2]
[426284565,1782244245000,-307.16,0.0001672,2]
[426284566,1782244245000,-307.16,0.0001672,2]
[426284568,1782244245000,-307.16,0.0001672,2]
[426284567,1782244245000,-307.16,0.0001672,2]
[426284556,1782244245000,-307.16,0.0001672,2]
[426284593,1782244245000,-400.0,0.00017148,2]
[426284600,1782244245000,-10195.57933536,0.000172,2]
[426284590,1782244245000,-219.0,0.00017148,2]
[426284615,1782244245000,-835.99,0.00017798,2]
[426284613,1782244245000,-150.0,0.00017737,2]
[426284617,1782244245000,-10195.57933536,0.000178,2]
[426284624,1782244245000,-9000.0,0.00018,2]
[426284622,1782244245000,-1130.0,0.000179,6]
[426284619,1782244245000,-1127.0,0.00017813,2]
[426284620,1782244245000,-10195.57933536,0.000179,2]
[426284625,1782244245000,-5963032.1,0.00018,2]
[426284618,1782244245000,-250.0,0.00017808,6]
[426284630,1782244245000,-194.07998194,0.00018,2]
[426284629,1782244245000,-169.87728653,0.00018,2]
[426284628,1782244245000,-162.7835713,0.00018,2]
[426284627,1782244245000,-170.3844487,0.00018,2]
[426284626,1782244245000,-350.0,0.00018,2]
[426284632,1782244245000,-513.09243856,0.00018,2]
[426284631,1782244245000,-174.52983839,0.00018,2]
[426284589,1782244245000,-520.0,0.00017148,2]
[426284634,1782244245000,-3671.80505456,0.00018,2]
[426284633,1782244245000,-169.85301842,0.00018,2]
[426284612,1782244245000,-500.0,0.00017709,2]
[426284623,1782244245000,-1961.83,0.00017945,2]
[426284616,1782244245000,-1709.75,0.000178,2]
[426284602,1782244245000,-340.0,0.0001726,2]
[426284614,1782244245000,-150.0,0.00017737,2]
[426284598,1782244245000,-500.0,0.00017193,2]
[426284601,1782244245000,-1961.82,0.0001726,2]
[426284594,1782244245000,-292.0,0.00017148,2]
[426284596,1782244245000,-1532.0,0.00017148,2]
[426284599,1782244245000,-500.0,0.00017193,2]
[426284597,1782244245000,-2125.0,0.00017148,2]
[426284603,1782244245000,-554.0,0.0001726,2]
[426284595,1782244245000,-461.0,0.00017148,2]
[426284608,1782244245000,-1173.45,0.00017424,2]
[426284610,1782244245000,-10195.57933536,0.000176,2]
[426284606,1782244245000,-182.0,0.0001729,2]
[426284605,1782244245000,-2000.0,0.00017267,7]
[426284607,1782244245000,-10195.57933536,0.000174,2]
[426284609,1782244245000,-1865.36488656,0.00017518,2]
[426284611,1782244245000,-500.0,0.00017709,2]
[426284604,1782244245000,-392.0,0.0001726,2]
[426284677,1782244246000,-513.09243856,0.000182,2]
[426284687,1782244246000,-499.83315559,0.0001824,2]
[426284681,1782244246000,-3671.80505456,0.000182,2]
[426284675,1782244246000,-174.52983839,0.000182,2]
[426284679,1782244246000,-169.85301842,0.000182,2]
[426284683,1782244246000,-1180.77794226,0.000182,2]
[426284690,1782244246000,-500.0,0.0001824,2]
[426284692,1782244246000,-182.0,0.0001829,2]
[426284707,1782244246000,-3671.80505456,0.000184,2]
[426284703,1782244246000,-513.09243856,0.000184,2]
[426284705,1782244246000,-169.85301842,0.000184,2]
[426284697,1782244246000,-162.7835713,0.000184,2]
[426284713,1782244246000,-943.6,0.0001841,2]
[426284711,1782244246000,-154.37421804,0.000184,2]
[426284715,1782244246000,-513.09243856,0.000185,2]
[426284709,1782244246000,-1180.77794226,0.000184,2]
[426284694,1782244246000,-10195.57933536,0.000183,2]
[426284701,1782244246000,-174.52983839,0.000184,2]
[426284685,1782244246000,-5529.0,0.000182,3]
[426284635,1782244246000,-205.98672192,0.00018,2]
[426284669,1782244246000,-2125.0,0.00018148,2]
[426284718,1782244246000,-1180.77794226,0.000185,2]
[426284641,1782244246000,-163.66062104,0.00018038,2]
[426284636,1782244246000,-1180.77794226,0.00018,2]
[426284639,1782244246000,-35694.0,0.00018,2]
[426284646,1782244246000,-340.0,0.00018082,2]
[426284637,1782244246000,-339.295611,0.00018,2]
[426284643,1782244246000,-1934.38338736,0.00018067,2]
[426284650,1782244246000,-151.0,0.00018148,2]
[426284659,1782244246000,-927.0,0.00018148,2]
[426284648,1782244246000,-10195.57933536,0.000181,2]
[426284657,1782244246000,-268.0,0.00018148,2]
[426284663,1782244246000,-292.0,0.00018148,2]
[426284665,1782244246000,-461.0,0.00018148,2]
[426284661,1782244246000,-400.0,0.00018148,2]
[426284673,1782244246000,-162.7835713,0.000182,2]
[426284653,1782244246000,-520.0,0.00018148,2]
[426284671,1782244246000,-170.3844487,0.000182,2]
[426284655,1782244246000,-219.0,0.00018148,2]
[426284652,1782244246000,-165.0,0.00018148,2]
[426284725,1782244246000,-2000.0,0.00018609,2]
[426284667,1782244246000,-1532.0,0.00018148,2]
[426284716,1782244246000,-3671.80505456,0.000185,2]
[426284747,1782244246000,-151.0,0.00018615,2]
[426284753,1782244246000,-152.0,0.00018615,2]
[426284750,1782244246000,-2005.9555727,0.00018615,2]
[426284752,1782244246000,-151.0,0.00018615,2]
[426284758,1782244246000,-201.93286098,0.00018615,2]
[426284757,1782244246000,-500.0,0.00018615,2]
[426284755,1782244246000,-151.0,0.00018615,2]
[426284756,1782244246000,-151.0,0.00018615,2]
[426284751,1782244246000,-500.0,0.00018615,2]
[426284754,1782244246000,-151.0,0.00018615,2]
[426284761,1782244246000,-151.0,0.00018615,2]
[426284764,1782244246000,-152.0,0.00018615,2]
[426284763,1782244246000,-151.0,0.00018615,2]
[426284767,1782244246000,-151.0,0.00018615,2]
[426284762,1782244246000,-500.0,0.00018615,2]
[426284765,1782244246000,-500.0,0.00018615,2]
[426284766,1782244246000,-151.0,0.00018615,2]
[426284720,1782244246000,-10195.57933536,0.000185,2]
[426284760,1782244246000,-152.0,0.00018615,2]
[426284749,1782244246000,-500.0,0.00018615,2]
[426284759,1782244246000,-151.0,0.00018615,2]
[426284748,1782244246000,-152.0,0.00018615,2]
[426284746,1782244246000,-500.0,0.00018615,2]
[426284724,1782244246000,-500.0,0.00018609,2]
[426284730,1782244246000,-1915.47834585,0.00018615,2]
[426284728,1782244246000,-500.0,0.00018615,2]
[426284733,1782244246000,-174.61919141,0.00018615,2]
[426284737,1782244246000,-151.0,0.00018615,2]
[426284736,1782244246000,-162.0749288,0.00018615,2]
[426284732,1782244246000,-151.0,0.00018615,2]
[426284734,1782244246000,-151.0,0.00018615,2]
[426284731,1782244246000,-200.0,0.00018615,2]
[426284722,1782244246000,-2000.0,0.00018609,2]
[426284745,1782244246000,-578.20924308,0.00018615,2]
[426284735,1782244246000,-515.3795423,0.00018615,2]
[426284738,1782244246000,-151.0,0.00018615,2]
[426284741,1782244246000,-157.41989852,0.00018615,2]
[426284740,1782244246000,-151.0,0.00018615,2]
[426284743,1782244246000,-151.0,0.00018615,2]
[426284742,1782244246000,-500.0,0.00018615,2]
[426284744,1782244246000,-151.0,0.00018615,2]
[426284739,1782244246000,-9211.34798984,0.00018615,2]
[426284797,1782244247000,-151.0,0.00018615,2]
[426284803,1782244247000,-152.0,0.00018615,2]
[426284789,1782244247000,-152.0,0.00018615,2]
[426284794,1782244247000,-151.0,0.00018615,2]
[426284791,1782244247000,-151.0,0.00018615,2]
[426284787,1782244247000,-151.0,0.00018615,2]
[426284811,1782244247000,-500.0,0.00018615,2]
[426284792,1782244247000,-151.0,0.00018615,2]
[426284805,1782244247000,-151.0,0.00018615,2]
[426284807,1782244247000,-500.0,0.00018615,2]
[426284795,1782244247000,-500.0,0.00018615,2]
[426284796,1782244247000,-152.0,0.00018615,2]
[426284801,1782244247000,-500.0,0.00018615,2]
[426284799,1782244247000,-151.0,0.00018615,2]
[426284819,1782244247000,-500.0,0.00018615,2]
[426284817,1782244247000,-500.0,0.00018615,2]
[426284821,1782244247000,-151.0,0.00018615,2]
[426284813,1782244247000,-151.0,0.00018615,2]
[426284809,1782244247000,-151.0,0.00018615,2]
[426284793,1782244247000,-152.0,0.00018615,2]
[426284815,1782244247000,-500.0,0.00018615,2]
[426284786,1782244247000,-500.0,0.00018615,2]
[426284769,1782244247000,-500.0,0.00018615,2]
[426284770,1782244247000,-695.39793187,0.00018615,2]
[426284768,1782244247000,-152.0,0.00018615,2]
[426284771,1782244247000,-151.0,0.00018615,2]
[426284774,1782244247000,-152.0,0.00018615,2]
[426284777,1782244247000,-500.0,0.00018615,2]
[426284775,1782244247000,-584.97877452,0.00018615,2]
[426284776,1782244247000,-151.0,0.00018615,2]
[426284773,1782244247000,-500.0,0.00018615,2]
[426284772,1782244247000,-151.0,0.00018615,2]
[426284784,1782244247000,-152.0,0.00018615,2]
[426284785,1782244247000,-500.0,0.00018615,2]
[426284782,1782244247000,-500.0,0.00018615,2]
[426284781,1782244247000,-151.0,0.00018615,2]
[426284779,1782244247000,-152.0,0.00018615,2]
[426284780,1782244247000,-500.0,0.00018615,2]
[426284778,1782244247000,-151.0,0.00018615,2]
[426284783,1782244247000,-151.0,0.00018615,2]
[426284790,1782244247000,-500.0,0.00018615,2]
[426284788,1782244247000,-151.0,0.00018615,2]
[426284823,1782244247000,-500.0,0.00018615,2]
[426284897,1782244247000,-268.0,0.00019148,2]
[426284830,1782244247000,-2000.0,0.00018618,2]
[426284868,1782244247000,-151.0,0.00018995,2]
[426284871,1782244247000,-151.0,0.00018999,2]
[426284875,1782244247000,-3786.21065022,0.00019,2]
[426284879,1782244247000,-1709.75,0.00019,2]
[426284878,1782244247000,-501.48466628,0.00019,2]
[426284865,1782244247000,-151.0,0.00018945,2]
[426284869,1782244247000,-151.0,0.00018999,2]
[426284873,1782244247000,-9772.87060835,0.00019,2]
[426284891,1782244247000,-151.0,0.00019109,2]
[426284882,1782244247000,-10195.57933536,0.00019,2]
[426284893,1782244247000,-835.99,0.00019124,2]
[426284892,1782244247000,-151.0,0.00019109,2]
[426284884,1782244247000,-680762.42476019,0.00019,2]
[426284886,1782244247000,-151.0,0.00019054,2]
[426284888,1782244247000,-151.0,0.00019054,2]
[426284890,1782244247000,-3671.80505456,0.000191,2]
[426284894,1782244247000,-151.0,0.00019148,2]
[426284896,1782244247000,-219.0,0.00019148,2]
[426284829,1782244247000,-151.0,0.00018615,2]
[426284863,1782244247000,-151.0,0.00018945,2]
[426284857,1782244247000,-151.0,0.00018835,2]
[426284895,1782244247000,-520.0,0.00019148,2]
[426284861,1782244247000,-3671.80505456,0.000189,2]
[426284860,1782244247000,-151.0,0.0001889,2]
[426284832,1782244247000,-151.0,0.0001867,2]
[426284827,1782244247000,-500.0,0.00018615,2]
[426284838,1782244247000,-513.09243856,0.000187,2]
[426284840,1782244247000,-3671.80505456,0.000187,2]
[426284844,1782244247000,-10195.57933536,0.000187,2]
[426284842,1782244247000,-1180.77794226,0.000187,2]
[426284834,1782244247000,-151.0,0.0001867,2]
[426284837,1782244247000,-2000.0,0.00018682,7]
[426284825,1782244247000,-151.0,0.00018615,2]
[426284852,1782244247000,-151.0,0.0001878,2]
[426284846,1782244247000,-151.0,0.00018724,2]
[426284855,1782244247000,-500.0,0.00018787,2]
[426284862,1782244247000,-10195.57933536,0.000189,2]
[426284858,1782244247000,-1915.47834585,0.00018889,2]
[426284856,1782244247000,-151.0,0.00018835,2]
[426284850,1782244247000,-1127.0,0.00018751,2]
[426284848,1782244247000,-151.0,0.00018724,2]
[426284854,1782244247000,-151.0,0.0001878,2]
[426284859,1782244247000,-151.0,0.0001889,2]
[426284920,1782244248000,-500.0,0.00019178,2]
[426284921,1782244248000,-500.0,0.00019178,2]
[426284922,1782244248000,-500.0,0.00019178,2]
[426284928,1782244248000,-151.0,0.00019178,2]
[426284929,1782244248000,-151.0,0.00019178,2]
[426284925,1782244248000,-151.0,0.00019178,2]